Posting Date,Expenditure Area,Supplier Name,Net Amount,Expense Type,Reason for Expense 
25-Oct-18,Culture & Environment Services,Aldi 776 104,8.23,Equipment - Purchase General,Purchase of lager for Christmas party table decoration.
24-Oct-18,Culture & Environment Services,Allison & Stiven,-122.18,Equipment - Purchase General,Refund
23-Oct-18,Culture & Environment Services,Allison & Stiven,-92.84,Miscellaneous Stock  - Purchases,Refund for returned clothing
22-Oct-18,Culture & Environment Services,Amazon Prime,6.66,Stationery,Amazon prime - for urgent delivery
26-Oct-18,Culture & Environment Services,Amazon Prime,-6.66,Stationery,Refund for Amazon Prime
02-Oct-18,Culture & Environment Services,Amazon.Co.Uk,72.87,Equipment - Purchase General,child AED pads for ransomes sports pavilion
22-Oct-18,Culture & Environment Services,Amazon.Co.Uk,12.70,Equipment - Purchase General,Stars - Card - Xmas Trees Temple
16-Oct-18,Culture & Environment Services,Amzn Mktp Uk,9.33,Cleaning Supplies,Radar Keys
01-Oct-18,Culture & Environment Services,Amzn Mktp Uk,14.40,Equipment - Purchase General,batteries for office use and fitness classes
09-Oct-18,Culture & Environment Services,Amzn Mktp Uk,12.49,Equipment - Purchase General,Card Sleeves - Cd's For Families - Slideshows
09-Oct-18,Culture & Environment Services,Amzn Mktp Uk,12.50,Equipment - Purchase General,CD's - Slideshow Presentations for Funerals
19-Oct-18,Culture & Environment Services,Amzn Mktp Uk,6.63,Equipment - Purchase General,Black envelopes - Xmas Party
19-Oct-18,Culture & Environment Services,Amzn Mktp Uk,4.75,Equipment - Purchase General,Candles - Xmas Remembrance Service
19-Oct-18,Culture & Environment Services,Amzn Mktp Uk,9.16,Equipment - Purchase General,"Glue gun, Bottle lights for xmas parties + Calculator"
19-Oct-18,Culture & Environment Services,Amzn Mktp Uk,8.99,Equipment - Purchase General,"Glue gun, Bottle lights for xmas parties + Calculator"
19-Oct-18,Culture & Environment Services,Amzn Mktp Uk,8.33,Equipment - Purchase General,"Glue gun, Bottle lights for xmas parties + Calculator"
19-Oct-18,Culture & Environment Services,Amzn Mktp Uk,11.88,Equipment - Purchase General,hazard tape for centre use
19-Oct-18,Culture & Environment Services,Amzn Mktp Uk,6.67,Equipment - Purchase General,Heavy duty yellow tape x2 for centre use
22-Oct-18,Culture & Environment Services,Amzn Mktp Uk,749.99,Equipment - Purchase General,Events Equipment
22-Oct-18,Culture & Environment Services,Amzn Mktp Uk,12.48,Equipment - Purchase General,new weighing scales in profiles for inductions
24-Oct-18,Culture & Environment Services,Amzn Mktp Uk,16.58,Equipment - Purchase General,2x ball pumps for Whitton sports centre
24-Oct-18,Culture & Environment Services,Amzn Mktp Uk,39.19,Equipment - Purchase General,Magnetic Card Swipe Cleaner For Centres To Use Mainly Watern
26-Oct-18,Culture & Environment Services,Amzn Mktp Uk,31.66,Equipment - Purchase General,headset for studio microphone
30-Oct-18,Culture & Environment Services,Amzn Mktp Uk,4.98,Equipment - Repairs,Velcro straps
02-Oct-18,Culture & Environment Services,Amzn Mktp UK Amazon.Co.Uk,12.08,Cleaning Supplies,Litter pickers x 4 for use at whitton sports centre
02-Oct-18,Culture & Environment Services,Amzn Mktp UK Amazon.Co.Uk,10.08,Equipment - Purchase General,Extension leads for Whitton sports centre
10-Oct-18,Culture & Environment Services,Anchor Safety Llp,92.85,Clothing & Uniform - Purchase,Oversize trousers and safety footwear
03-Oct-18,Culture & Environment Services,Anglia Tool Centre,22.00,Miscellaneous Stock  - Purchases,Dewalt chisel - Landscape Team
03-Oct-18,Culture & Environment Services,Anglia Tool Centre,55.80,Miscellaneous Stock  - Purchases,Pressurised Water Tank kit - Landscape Team
02-Oct-18,Culture & Environment Services,Argos Ltd,21.66,Equipment - Purchase General,10 socket extension lead for security radios
16-Oct-18,Culture & Environment Services,Argos Warren Heath,35.97,Equipment - Purchase General,Memory Sticks For B File Footage
17-Oct-18,Culture & Environment Services,Argos Warren Heath,20.83,Equipment - Purchase General,New clock and HDMI lead.
12-Oct-18,Culture & Environment Services,Asda Groceries Online,140.00,Equipment - Purchase General,Purchase of new towels for visiting production use.
08-Oct-18,Culture & Environment Services,Asda Petrol 4278,66.68,General Transport Running Expenses,diesel fuel for GV12 SWJ
24-Oct-18,Culture & Environment Services,Asda Petrol 4278,66.68,General Transport Running Expenses,Diesel fuel for GV12 SWJ
18-Oct-18,Culture & Environment Services,Asda Stores 4278,43.25,Goods for Resale - Catering/Beverages,Catering order - shows
17-Oct-18,Culture & Environment Services,Asda Stores 4278,30.00,Other Minor Expenses,volunteer refreshments
22-Oct-18,Culture & Environment Services,Asda Superstore,12.50,Equipment - Purchase General,Halloween decorations
22-Oct-18,Culture & Environment Services,Asda Superstore,10.00,Equipment - Purchase General,satellite cables for treadmills in gym
15-Oct-18,Culture & Environment Services,Asda Superstore,3.33,Miscellaneous Stock  - Purchases,Scales for wetpour - Landscape Team
22-Oct-18,Culture & Environment Services,Asda Superstore,2.08,Stationery,Sticky notes (stationary)
02-Oct-18,Culture & Environment Services,B & M Retail,8.64,Cleaning Supplies,Cat litter / Acetone/ cotton wool
05-Oct-18,Culture & Environment Services,B & M Retail,20.91,Equipment - Purchase General,New kettle for the mess room at CCP
25-Oct-18,Culture & Environment Services,B & M Retail,3.33,Equipment - Purchase General,Air freshners
03-Oct-18,Culture & Environment Services,B & M Retail,2.00,Goods for Resale - Catering/Beverages,Milk for 50+
10-Oct-18,Culture & Environment Services,B & M Retail,1.09,Goods for Resale - Catering/Beverages,Milk for 50+
16-Oct-18,Culture & Environment Services,B & M Retail,2.18,Goods for Resale - Catering/Beverages,Milk
11-Oct-18,Culture & Environment Services,B & Q 1315,16.68,Equipment - Purchase General,wood for wooden surrounds & stakes
01-Oct-18,Culture & Environment Services,B & Q 1315,64.44,Materials and Supplies - Miscellaneous,slabs for compost toilet
10-Oct-18,Culture & Environment Services,B & Q 1315,16.72,Materials and Supplies - Miscellaneous,feed and spreader
24-Oct-18,Culture & Environment Services,B & Q 1315,14.25,Materials and Supplies - Miscellaneous,for cement to make feet for benches
12-Oct-18,Culture & Environment Services,B & Q 1315,140.00,Miscellaneous Stock  - Purchases,Materials for Poppy display at CCP
17-Oct-18,Culture & Environment Services,B & Q 1315,102.08,Miscellaneous Stock  - Purchases,Materials for the Poppy display at CCP
18-Oct-18,Culture & Environment Services,B & Q 1315,99.50,Miscellaneous Stock  - Purchases,Materials for Poppy display at CCP
22-Oct-18,Culture & Environment Services,B & Q 1315,20.88,Miscellaneous Stock  - Purchases,Materials for Poppy display at CCP
26-Oct-18,Culture & Environment Services,B & Q 1315,35.48,Miscellaneous Stock  - Purchases,Cement - ST AUGUSTINE'S REC - Landscape Team
03-Oct-18,Culture & Environment Services,Bag Agg Ltd,22.44,Materials and Supplies - Miscellaneous,tool purchase
05-Oct-18,Culture & Environment Services,Bag Agg Ltd,19.89,Materials and Supplies - Miscellaneous,Ballast - THE DALES - Landscape Team
12-Oct-18,Culture & Environment Services,Bag Agg Ltd,20.40,Materials and Supplies - Miscellaneous,to mix with cement to make bench base
01-Oct-18,Culture & Environment Services,Bag Agg Ltd,24.05,Miscellaneous Stock  - Purchases,Ballast - ALTON WATERS - Landscape Team
04-Oct-18,Culture & Environment Services,Bag Agg Ltd,24.05,Miscellaneous Stock  - Purchases,Ballast - IPSERVE- Landscape Team
09-Oct-18,Culture & Environment Services,Bag Agg Ltd,17.00,Miscellaneous Stock  - Purchases,Ballast - BENCH INSTALLATION - Landscape team
25-Oct-18,Culture & Environment Services,Banner Group Ltd,56.43,Stationery,Stationery Items
30-Oct-18,Culture & Environment Services,Banner Group Ltd,56.98,Stationery,stationary
02-Oct-18,Culture & Environment Services,Bartram Mowers Limited,869.85,Parks Vehicle Costs,Service for Greenmech Quadchip 160
02-Oct-18,Culture & Environment Services,Bfs Group,164.71,Goods for Resale - Catering/Beverages,Bidfood Invoice
31-Oct-18,Culture & Environment Services,Bfs Group,83.48,Materials and Supplies - Miscellaneous,Various items for backstage and FOH
05-Oct-18,Culture & Environment Services,Binlinersdirect.Co,130.24,Cleaning Supplies,Bin bags for new bins.
22-Oct-18,Culture & Environment Services,Booker Limited Ipswich,44.85,Goods for Resale - Catering/Beverages,Fruit shoots for Madagasca
30-Oct-18,Culture & Environment Services,Booker Limited Ipswich,9.99,Goods for Resale - Catering/Beverages,"Stock for Bars, cordial, takeaway boxes etc"
30-Oct-18,Culture & Environment Services,Booker Limited Ipswich,10.45,Goods for Resale - Catering/Beverages,"Stock for Bars, cordial, takeaway boxes etc"
30-Oct-18,Culture & Environment Services,Booker Limited Ipswich,46.24,Goods for Resale - Catering/Beverages,"Stock for Bars, cordial, takeaway boxes etc"
30-Oct-18,Culture & Environment Services,Booker Limited Ipswich,33.01,Goods for Resale - Catering/Beverages,"Stock for Bars, cordial, takeaway boxes etc"
04-Oct-18,Culture & Environment Services,Bourne Garden Centre L,20.83,Miscellaneous Stock  - Purchases,Grass seeds - ALTON WATERS - Landscape team
30-Oct-18,Culture & Environment Services,Bunzl,70.27,Cleaning Supplies,Cleaning Supplies
02-Oct-18,Culture & Environment Services,Caffe Nero - 101,4.71,Subsistence Expenses,external meeting with PhotoEast director
10-Oct-18,Culture & Environment Services,Caffe Nero - 101,4.17,Subsistence Expenses,external staffing review
17-Oct-18,Culture & Environment Services,Caffe Nero - 101,4.50,Subsistence Expenses,external staffing review
17-Oct-18,Culture & Environment Services,Caffe Nero - 101,4.79,Subsistence Expenses,external staffing review
30-Oct-18,Culture & Environment Services,Caffe Nero - 101,4.67,Subsistence Expenses,Review meeting with Tour Guides Chair
26-Oct-18,Culture & Environment Services,Caffe Nero 329 Bishops S,8.08,Other Minor Expenses,Guest Coffee - Meeting Mentor - Leading learning
19-Oct-18,Culture & Environment Services,Card Factory,2.48,Equipment - Purchase General,POS display materials for SPILL
18-Oct-18,Culture & Environment Services,Cdc Bodyshop Limited,293.00,Insurance Premiums - Supplies and Services,Accident repair F6159 - FV56 HKB; inv. 1508
01-Oct-18,Culture & Environment Services,Collier&catchpole,49.77,Miscellaneous Stock  - Purchases,(Cement - IPSERVE) & (Brickslips - ALTON WATER) Landscape T
03-Oct-18,Culture & Environment Services,Collier&catchpole,23.70,Miscellaneous Stock  - Purchases,Cement - ALTON WATERS - Landscape Team
05-Oct-18,Culture & Environment Services,Collier&catchpole,63.95,Miscellaneous Stock  - Purchases,Cement - IPSERVE - Landscape Team
05-Oct-18,Culture & Environment Services,Collier&catchpole,193.20,Miscellaneous Stock  - Purchases,x56 bags cement - Landscape Team
08-Oct-18,Culture & Environment Services,Collier&catchpole,13.90,Miscellaneous Stock  - Purchases,Cement - Landscape Team
22-Oct-18,Culture & Environment Services,Collier&catchpole,51.16,Miscellaneous Stock  - Purchases,x4 bags 25kg Cement - ST AUGUSTINE'S REC - Landscape Team
31-Oct-18,Culture & Environment Services,Collier&catchpole,186.68,Miscellaneous Stock  - Purchases,Multitrack/line Marker/knife - St Augustine's - Landscape Tm
31-Oct-18,Culture & Environment Services,Cpw Locksmiths And Securi,5.83,Equipment - Purchase General,Lock plate for the front door
23-Oct-18,Culture & Environment Services,Cpw Locksmiths And Securi,10.00,Materials and Supplies - Miscellaneous,key cutting for bin stores
31-Oct-18,Culture & Environment Services,Dale Sauna Ltd,135.31,Equipment - Purchase General,steam room descaler and essence
31-Oct-18,Culture & Environment Services,Digital Id,35.00,Postage Costs,carriage
02-Oct-18,Culture & Environment Services,Digital Id,658.95,Stationery,printing cards
04-Oct-18,Culture & Environment Services,Direct Linen Textiles,161.03,Materials and Supplies - Miscellaneous,Table clothes
08-Oct-18,Culture & Environment Services,Dunelm Ltd,22.50,Equipment - Purchase General,Replacement Chapel Tables (Previous Stolen)
01-Oct-18,Culture & Environment Services,Dvla Vehicle Tax,210.42,General Transport Running Expenses,tax for AE64 SNX
01-Oct-18,Culture & Environment Services,Dvla Vehicle Tax,210.42,General Transport Running Expenses,tax for AE64 SNY
11-Oct-18,Culture & Environment Services,Dvla Vehicle Tax,252.50,General Transport Running Expenses,vehicle tax for av61 rka
11-Oct-18,Culture & Environment Services,Dvla Vehicle Tax,252.50,General Transport Running Expenses,vehicle tax for AY63 WHM
11-Oct-18,Culture & Environment Services,Dvla Vehicle Tax,"1,202.50",General Transport Running Expenses,vehicle tax for ay66 cya
11-Oct-18,Culture & Environment Services,Dvla Vehicle Tax,167.50,General Transport Running Expenses,vehicle tax for lk60 etd
19-Oct-18,Culture & Environment Services,Dvla Vehicle Tax,210.42,General Transport Running Expenses,vehicle tax for av61 tgn
24-Oct-18,Culture & Environment Services,Dvla Vehicle Tax,22.50,General Transport Running Expenses,Vehicle tax for AF64 TXE
11-Oct-18,Culture & Environment Services,Dvla Vehicle Tax,252.50,Parks Vehicle Costs,vehicle tax for a064 tmv
11-Oct-18,Culture & Environment Services,Dvla Vehicle Tax,252.50,Parks Vehicle Costs,vehicle tax for ej64 ewa
11-Oct-18,Culture & Environment Services,Dvla Vehicle Tax,252.50,Parks Vehicle Costs,vehicle tax for ej64 ewb
11-Oct-18,Culture & Environment Services,Dvla Vehicle Tax,252.50,Parks Vehicle Costs,vehicle tax for ej64 ewc
11-Oct-18,Culture & Environment Services,Dvla Vehicle Tax,252.50,Parks Vehicle Costs,vehicle tax for ld66 kco
11-Oct-18,Culture & Environment Services,Dvla Vehicle Tax,252.50,Parks Vehicle Costs,vehicle tax for ld66 kcu
11-Oct-18,Culture & Environment Services,Dvla Vehicle Tax,252.50,Parks Vehicle Costs,vehicle tax for ld66 kcv
11-Oct-18,Culture & Environment Services,Dvla Vehicle Tax,252.50,Parks Vehicle Costs,vehicle tax for ld66 kcx
08-Oct-18,Culture & Environment Services,Eastern Concrete,-38.16,Miscellaneous Stock  - Purchases,concrete Back Hamlet Allotments
08-Oct-18,Culture & Environment Services,Eastern Concrete,291.67,Miscellaneous Stock  - Purchases,Concrete for the driveway into Back Hamlet Allotments
15-Oct-18,Culture & Environment Services,Ellenbrook,22.17,General Transport Running Expenses,20.32l petrol (Jerry can) for machinery
18-Oct-18,Culture & Environment Services,Ellenbrook,61.56,General Transport Running Expenses,"54,77l dies DY56VKD + 9.67l petrol (metal can for machinery)"
18-Oct-18,Culture & Environment Services,Ellenbrook,10.47,General Transport Running Expenses,"54,77l dies DY56VKD + 9.67l petrol (metal can for machinery)"
05-Oct-18,Culture & Environment Services,Elmers Hardware,4.99,Miscellaneous Stock  - Purchases,Pink brick line - THE DALES - Landscape Team
10-Oct-18,Culture & Environment Services,Elmers Hardware,101.31,Miscellaneous Stock  - Purchases,Loppers/Rakes/lawn edger - Landscape Team
02-Oct-18,Culture & Environment Services,Fireprotect,14.69,Equipment - Purchase General,fire extinguishers covers x2
10-Oct-18,Culture & Environment Services,Fireprotect,20.42,Equipment - Purchase General,fire extinguisher covers for office and centre
26-Oct-18,Culture & Environment Services,Foxs Chandleries,25.00,Equipment - Purchase General,Item for Remembrance Sunday
29-Oct-18,Culture & Environment Services,Foxs Chandleries,6.80,Miscellaneous Stock  - Purchases,Rowlocks for boat
12-Oct-18,Culture & Environment Services,Gardners Books Ltd,564.79,Goods for Resale - Retail,New supplier books purchase for retail sales
03-Oct-18,Culture & Environment Services,Greenblue Urban Limited,417.65,Miscellaneous Stock  - Purchases,tree planting job
22-Oct-18,Culture & Environment Services,Gripfixings Ltd,28.15,Miscellaneous Stock  - Purchases,Survey Marker Paint - ST AUGUSTINE'S REC - Landscape Team
04-Oct-18,Culture & Environment Services,Halfords 0883,14.58,Equipment - Purchase General,Footpump (for tyres) to replace broken footpump.
10-Oct-18,Culture & Environment Services,Harbro Supplies Ltd,176.40,Goods for Resale - Bereavement,Items for masonry team for headstones & inscription quotes
24-Oct-18,Culture & Environment Services,Hg Gladwell & Sons,26.98,Materials and Supplies - Miscellaneous,food for animals
26-Oct-18,Culture & Environment Services,Hg Gladwell & Sons,44.83,Materials and Supplies - Miscellaneous,x4 sacks of Duckfood - Christchurch Hub
16-Oct-18,Culture & Environment Services,Homebase Ltd 038,4.14,Equipment - Purchase General,Purchase of chicken wire for Christmas party decoration.
08-Oct-18,Culture & Environment Services,Horticultural Sppls Ltd,75.55,Materials and Supplies - Miscellaneous,Pruning Saw & Bypass Secateurs - Christchurch Hub
19-Oct-18,Culture & Environment Services,Horticultural Sppls Ltd,23.65,Materials and Supplies - Miscellaneous,Loppers - Christchurch Hub
19-Oct-18,Culture & Environment Services,Im-Press Promotion,142.20,Clothing & Uniform - Purchase,Swimming Teacher Uniform
08-Oct-18,Culture & Environment Services,Indespension,8.50,Parks Vehicle Costs,Hitch lock for trailer
04-Oct-18,Culture & Environment Services,J P Lennard Ltd,219.75,Equipment - Purchase General,replacement pace clock
31-Oct-18,Culture & Environment Services,J P Lennard Ltd,361.16,Equipment - Purchase General,barriers for chemical deliveries at fore street
11-Oct-18,Culture & Environment Services,Jewson Limited,27.41,Equipment - Purchase General,tool purchase
12-Oct-18,Culture & Environment Services,Jewson Limited,17.06,Equipment - Purchase General,equipment for arb team
15-Oct-18,Culture & Environment Services,Kings,67.50,Materials and Supplies - Miscellaneous,keys for new mess room door
16-Oct-18,Culture & Environment Services,Kings,16.67,Materials and Supplies - Miscellaneous,Cut keys for Holywells staff
16-Oct-18,Culture & Environment Services,Leisure Repair Limited,154.40,Equipment - Purchase General,Replacement cylinder for steam generator.
03-Oct-18,Culture & Environment Services,Leisureteq,514.60,Equipment - Purchase General,chemical dosing spares
03-Oct-18,Culture & Environment Services,Lloyds Online,118.50,Employee Expenses,Inoculations for Street Cleansing staff
19-Oct-18,Culture & Environment Services,Lloyds Online,118.50,Employee Expenses,Inoculations for Street Cleansing staff
19-Oct-18,Culture & Environment Services,Lloyds Online,118.50,Employee Expenses,Inoculations for Street Cleansing staff
25-Oct-18,Culture & Environment Services,Lloyds Online,118.50,Employee Expenses,Inoculations for Street Cleansing staff
24-Oct-18,Culture & Environment Services,Lumberjacks,37.25,Materials and Supplies - Miscellaneous,25 Rose stakes
02-Oct-18,Culture & Environment Services,Lumberjacks,28.30,Miscellaneous Stock  - Purchases,Timber & cement - BACK HAMLET ALLOTMENT - Landscape Team
03-Oct-18,Culture & Environment Services,Lumberjacks,100.44,Miscellaneous Stock  - Purchases,tree planting jobs
04-Oct-18,Culture & Environment Services,Lumberjacks,25.92,Miscellaneous Stock  - Purchases,Ballast/cement - BACK HAMLET ALLOTMENTS- Landscape Team
12-Oct-18,Culture & Environment Services,Lumberjacks,10.56,Miscellaneous Stock  - Purchases,2.4m 25x100 sawn - ST AGUSTINE'S REC - Landscape Team
11-Oct-18,Culture & Environment Services,Machine Mart Ltd,29.48,Miscellaneous Stock  - Purchases,cv paddles/lawn rake - Landscape Team
02-Oct-18,Culture & Environment Services,Makro Self Service Ipswic,401.52,Equipment - Purchase General,Water for Crafted Classique
01-Oct-18,Culture & Environment Services,McDonalds,13.97,Equipment - Purchase General,Worked continually in car park on Waterfront to complete job
04-Oct-18,Culture & Environment Services,Mde Electrical Supplie,27.08,Equipment - Purchase General,Bulbs
19-Oct-18,Culture & Environment Services,Mde Electrical Supplie,6.60,Fixtures & Fittings,Light starter unit
09-Oct-18,Culture & Environment Services,Mercure Liverpool Atlanti,23.90,Training Expenses,Travel expenses LAEOG seminar MJH
04-Oct-18,Culture & Environment Services,Mms.Cardsaveonlinepay,231.75,Training Expenses,2 Day CPC training course
15-Oct-18,Culture & Environment Services,Mobile Mini UK Limited,78.00,Equipment Hire,Hire of storage containers for equipment.
09-Oct-18,Culture & Environment Services,Mpd - Ipswich 03,12.68,Equipment - Purchase General,De-ionised water for batteries
18-Oct-18,Culture & Environment Services,Mpd - Ipswich 03,33.34,Equipment - Purchase General,new battery for mobile sawmill
08-Oct-18,Culture & Environment Services,Music World,91.67,Equipment - Purchase General,Purchase of microphones and cable for hire and events.
08-Oct-18,Culture & Environment Services,Music World,91.67,Equipment - Purchase General,Purchase of microphones and cable for hire and events.
10-Oct-18,Culture & Environment Services,Nacton Rd Esso,19.88,General Transport Running Expenses,Diesel for temp. hire Toyota HiLux YR68 JFU
05-Oct-18,Culture & Environment Services,Nhbs Ltd,224.75,Materials and Supplies - Miscellaneous,tools for rangers
05-Oct-18,Culture & Environment Services,Nhbs Ltd,252.74,Materials and Supplies - Miscellaneous,tools for rangers
16-Oct-18,Culture & Environment Services,Paypal,56.58,Clothing & Uniform - Purchase,Gloves for Arb Team
03-Oct-18,Culture & Environment Services,Paypal,3.13,Computer Consumables and other Minor IT costs,2 x Stylus pens for Tablets
03-Oct-18,Culture & Environment Services,Paypal,6.66,Computer Consumables and other Minor IT costs,Charger lead and plug
11-Oct-18,Culture & Environment Services,Paypal,8.33,Computer Consumables and other Minor IT costs,Charger and Plug
09-Oct-18,Culture & Environment Services,Paypal,73.40,Equipment - Purchase General,tool purchase
09-Oct-18,Culture & Environment Services,Paypal,180.00,Equipment - Purchase General,tool purchase
16-Oct-18,Culture & Environment Services,Paypal,12.13,Equipment - Purchase General,Desk lamp 
16-Oct-18,Culture & Environment Services,Paypal,118.80,Equipment - Purchase General,equipment for arb team
22-Oct-18,Culture & Environment Services,Paypal,15.99,Equipment - Purchase General,Events Equipment
22-Oct-18,Culture & Environment Services,Paypal,24.16,Equipment - Purchase General,Events Equipment
22-Oct-18,Culture & Environment Services,Paypal,68.73,Equipment - Purchase General,Events Equipment
18-Oct-18,Culture & Environment Services,Paypal,199.00,Training Expenses,First Aid renewal training 
15-Oct-18,Culture & Environment Services,Post Office Counter,16.46,Materials and Supplies - Miscellaneous,Postage paid for returns - Christchurch Hub
01-Oct-18,Culture & Environment Services,Premier Farnell,98.50,Equipment - Purchase General,Purchase of secure cabinet for CCTV recorder.
11-Oct-18,Culture & Environment Services,Property Perspective L,430.83,Miscellaneous Stock  - Purchases,Cat Scanner for search for underground cables before digging
11-Oct-18,Culture & Environment Services,Property Perspective L,416.67,Miscellaneous Stock  - Purchases,Genny for cat scanner to detect underground cables before di
29-Oct-18,Culture & Environment Services,Prospec Ltd,187.00,Equipment - Purchase General,locker parts
29-Oct-18,Culture & Environment Services,Rope And Sling Specialist,184.44,Equipment - Purchase General,equipment for arb team
11-Oct-18,Culture & Environment Services,Rs Components,46.31,Equipment - Purchase General,Replacement Isolator Switch for motor control
18-Oct-18,Culture & Environment Services,Rs Components,6.58,Premises Costs - Miscellaneous,Split keyrings for Market
18-Oct-18,Culture & Environment Services,Ryman,34.99,Equipment - Purchase General,A4 Display Units x 6
04-Oct-18,Culture & Environment Services,Ryman,8.33,Stationery,Card
17-Oct-18,Culture & Environment Services,Ryman,24.98,Stationery,Dymo tape 
25-Oct-18,Culture & Environment Services,Ryman,9.98,Stationery,Lamination pouches and velcro tabs
01-Oct-18,Culture & Environment Services,Sainsburys S/mkts,97.17,Goods for Resale - Catering/Beverages,Catering Order - shows
04-Oct-18,Culture & Environment Services,Sainsburys S/mkts,32.79,Goods for Resale - Catering/Beverages,Meeting Catering
05-Oct-18,Culture & Environment Services,Sainsburys S/mkts,0.04,Goods for Resale - Catering/Beverages,Lemons and rider items
05-Oct-18,Culture & Environment Services,Sainsburys S/mkts,0.62,Goods for Resale - Catering/Beverages,Lemons and rider items
05-Oct-18,Culture & Environment Services,Sainsburys S/mkts,9.00,Goods for Resale - Catering/Beverages,Lemons and rider items
15-Oct-18,Culture & Environment Services,Sainsburys S/mkts,0.08,Goods for Resale - Catering/Beverages,lEMONS
15-Oct-18,Culture & Environment Services,Sainsburys S/mkts,9.00,Goods for Resale - Catering/Beverages,lEMONS
26-Oct-18,Culture & Environment Services,Sainsburys S/mkts,12.59,Goods for Resale - Catering/Beverages,Rider items 
26-Oct-18,Culture & Environment Services,Sainsburys S/mkts,0.04,Goods for Resale - Catering/Beverages,Rider items 
30-Oct-18,Culture & Environment Services,Sainsburys S/mkts,6.75,Goods for Resale - Catering/Beverages,Lemons and Milk
11-Oct-18,Culture & Environment Services,Sainsburys S/mkts,4.58,Materials and Supplies - Miscellaneous,8inch knife - Chantry Hub
31-Oct-18,Culture & Environment Services,Sainsburys S/mkts,9.58,Materials and Supplies - Miscellaneous,Dishwasher cleaning aid products
22-Oct-18,Culture & Environment Services,Sainsburys S/mkts,8.00,Subsistence Expenses,Subsistence during evening Processions banner install
15-Oct-18,Culture & Environment Services,Screens-R-Us-Limited,200.00,Insurance Premiums - Supplies and Services,Quarter screen replacement - AY15 NFZ
05-Oct-18,Culture & Environment Services,Screwfix Dir. Ltd,24.96,Miscellaneous Stock  - Purchases,Box level/post level - Landscape Team
09-Oct-18,Culture & Environment Services,Screwfix Direct,18.15,Equipment - Purchase General,Particle Filters - Crem Staff Masks
26-Oct-18,Culture & Environment Services,Screwfix Direct,12.49,Parks Vehicle Costs,Seat Cover
15-Oct-18,Culture & Environment Services,Screwfix Direct Lt,21.55,Equipment - Purchase General,Converter connections
18-Oct-18,Culture & Environment Services,Screwfix Direct Lt,4.91,Equipment - Purchase General,4 way extension
03-Oct-18,Culture & Environment Services,Screwfix Ipswich Ransomes,19.99,Materials and Supplies - Miscellaneous,Barrier fencing - NORTHGATE HIGH SCHOOL - Chantry Hub
19-Oct-18,Culture & Environment Services,Screwfix Ipswich Ransomes,51.64,Materials and Supplies - Miscellaneous,Cable Ties & tape measure - Chantry Hub
17-Oct-18,Culture & Environment Services,Screwfix Ipswich Ransomes,13.13,Miscellaneous Stock  - Purchases,Materials for Poppy display at CCP
18-Oct-18,Culture & Environment Services,Screwfix Ipswich Ransomes,49.98,Miscellaneous Stock  - Purchases,Blades for Stone Cutter - ST AUGUSTINES - Landscape Team
17-Oct-18,Culture & Environment Services,Shop.Swimming.Org,45.50,Goods for Resale - Retail,JPS Certificates
04-Oct-18,Culture & Environment Services,Signmax Ab,8.11,Equipment - Purchase General,Sign - Cemetery office - Ring for Attention
31-Oct-18,Culture & Environment Services,Signs For You Ltd,468.42,Fixtures & Fittings,new big track signs x2
10-Oct-18,Culture & Environment Services,Sjasuplies,228.25,Materials and Supplies - Miscellaneous,"First Aid Equipment for HEARS, gloves and bandages."
31-Oct-18,Culture & Environment Services,Sky High,380.00,Training Expenses,Training 
10-Oct-18,Culture & Environment Services,Sovereign Turf Ltd,110.00,Miscellaneous Stock  - Purchases,Materials for Poppy display at CCP
16-Oct-18,Culture & Environment Services,Sp * Processions,12.50,Clothing & Uniform - Purchase,Procession Badges for Uniforms
04-Oct-18,Culture & Environment Services,Sproughton Garden Machine,556.50,Equipment - Repairs,Repairs to leaf blowers for Cleansing
12-Oct-18,Culture & Environment Services,Suffolk County Council,4.00,Holding A/C - General Use,Death Certificate for Public Health Funeral
18-Oct-18,Culture & Environment Services,Suffolk County Council,83.33,Licences,Advertising Licences per street - Lamppost banners
05-Oct-18,Culture & Environment Services,Suffolk County Council,41.67,Other Fees and Professional Services,Road Closure Application for Xmas Lights event 2018
03-Oct-18,Culture & Environment Services,Suk Retail Ltd,168.54,Equipment - Purchase General,Event Team Equipment
19-Oct-18,Culture & Environment Services,Suk Retail Ltd,30.78,Materials and Supplies - Miscellaneous,equipment for arb team
12-Oct-18,Culture & Environment Services,Tesco Store 3240,19.08,Goods for Resale - Catering/Beverages,Food for panto launch and rider requiremenst
12-Oct-18,Culture & Environment Services,Tesco Store 3240,59.76,Goods for Resale - Catering/Beverages,Food for panto launch and rider requiremenst
22-Oct-18,Culture & Environment Services,Tesco Store 3240,173.66,Goods for Resale - Catering/Beverages,"Flavoured Gins for Regent, food for Conferences"
22-Oct-18,Culture & Environment Services,Tesco Store 3240,40.33,Goods for Resale - Catering/Beverages,"Flavoured Gins for Regent, food for Conferences"
30-Oct-18,Culture & Environment Services,Tesco Store 3240,63.33,Goods for Resale - Catering/Beverages,Pink Gin for Bars
04-Oct-18,Culture & Environment Services,Tesco Stores 2326,5.00,Equipment - Purchase General,batteries for office use (aaa batteries)
10-Oct-18,Culture & Environment Services,The Ipswich Cobble,13.33,Equipment - Purchase General,Key cutting
16-Oct-18,Culture & Environment Services,The Ipswich Cobble,30.42,Equipment - Purchase General,Key cutting
12-Oct-18,Culture & Environment Services,The Range,15.98,Equipment - Purchase General,Bungee cords; batteries & pressure sprayer for Cleansing
29-Oct-18,Culture & Environment Services,The Range,3.33,Materials and Supplies - Miscellaneous,A4 Diary 2019 for Reception - Christchurch Hub
31-Oct-18,Culture & Environment Services,The Range,25.79,Materials and Supplies - Miscellaneous,Hand tools for the Cemetery
11-Oct-18,Culture & Environment Services,The Windscreen Co,325.00,Insurance Premiums - Supplies and Services,windscreen replacement AV13 OPN
17-Oct-18,Culture & Environment Services,The Windscreen Co,185.00,Insurance Premiums - Supplies and Services,"Replacement Windscreen, broken by stone from mower"
12-Oct-18,Culture & Environment Services,Timpson,5.42,Fixtures & Fittings,kEY
16-Oct-18,Culture & Environment Services,Timpson,28.33,Materials and Supplies - Miscellaneous,Plaque for a memorial bench - Christchurch Hub
03-Oct-18,Culture & Environment Services,Toms Tree Ties,43.20,Miscellaneous Stock  - Purchases,tree planting jobs
19-Oct-18,Culture & Environment Services,Toms Tree Ties,100.02,Miscellaneous Stock  - Purchases,Bourne Cornhill Trees
19-Oct-18,Culture & Environment Services,Toms Tree Ties,775.20,Miscellaneous Stock  - Purchases,tree planting materials
10-Oct-18,Culture & Environment Services,Toolstation Ltd,5.98,Materials and Supplies - Miscellaneous,tool purchase
11-Oct-18,Culture & Environment Services,Toolstation Ltd,10.74,Materials and Supplies - Miscellaneous,tool purchase
16-Oct-18,Culture & Environment Services,Toolstation Ltd,19.55,Materials and Supplies - Miscellaneous,Bungee cord - Christchurch Hub
23-Oct-18,Culture & Environment Services,Toolstation Ltd,10.63,Miscellaneous Stock  - Purchases,Nuts & bolts for bench installation - CCP - Landscape Team
17-Oct-18,Culture & Environment Services,Tp Ipswich,15.93,Miscellaneous Stock  - Purchases,Materials for Poppy display at CCP
23-Oct-18,Culture & Environment Services,Trainline,-45.00,Training Expenses,Refund as staff member unable to travel
23-Oct-18,Culture & Environment Services,Trainline,-38.25,Training Expenses,staff member unable to travel
23-Oct-18,Culture & Environment Services,Trainline,80.85,Training Expenses,Train Travel - Leading learning
05-Oct-18,Culture & Environment Services,Turner Tool Hire,510.00,Equipment Hire,mewp hire
24-Oct-18,Culture & Environment Services,Turner Tool Hire,971.55,Equipment Hire,MEWP Hire for Tree Team
10-Oct-18,Culture & Environment Services,Vue*ncs Citb Hs&e Test,17.50,Equipment Hire,Mewp Hire
12-Oct-18,Culture & Environment Services,Waitrose 632,19.20,Other Minor Expenses,volunteer refreshments
05-Oct-18,Culture & Environment Services,Waitrose Ltd,1.75,Goods for Resale - Catering/Beverages,Rider requirements
12-Oct-18,Culture & Environment Services,Waitrose Ltd,9.15,Goods for Resale - Catering/Beverages,Food for panto cast
17-Oct-18,Culture & Environment Services,Waitrose Ltd,1.83,Goods for Resale - Catering/Beverages,Milk
23-Oct-18,Culture & Environment Services,Waitrose Ltd,2.90,Goods for Resale - Catering/Beverages,Bread
25-Oct-18,Culture & Environment Services,Waitrose Ltd,1.83,Goods for Resale - Catering/Beverages,Milk
02-Oct-18,Culture & Environment Services,Waitrose Ltd,1.10,Subsistence Expenses,Milk for Shop mo
09-Oct-18,Culture & Environment Services,Waitrose Ltd,1.35,Subsistence Expenses,Milk for Shop mo
16-Oct-18,Culture & Environment Services,Waitrose Ltd,1.13,Subsistence Expenses,Milk for Shop mo
23-Oct-18,Culture & Environment Services,Waitrose Ltd,1.13,Subsistence Expenses,Milk for Shop mo
30-Oct-18,Culture & Environment Services,Waitrose Ltd,0.92,Subsistence Expenses,Milk for Shop mo
11-Oct-18,Culture & Environment Services,Wickes Ipswich,24.99,Equipment - Purchase General,"Wood Stain, Wooden Grave Surrounds"
12-Oct-18,Culture & Environment Services,Wickes Ipswich,10.57,Materials and Supplies - Miscellaneous,Brick Bolster & a rubber grip - Chantry Hub
22-Oct-18,Culture & Environment Services,Wickes Ipswich,9.40,Materials and Supplies - Miscellaneous,Pruning Saw - Christchurch Hub
22-Oct-18,Culture & Environment Services,Wickes Ipswich,48.43,Materials and Supplies - Miscellaneous,Treated sawn wood
23-Oct-18,Culture & Environment Services,Wickes Ipswich,5.00,Miscellaneous Stock  - Purchases,Cartridge Gun - Landscape Team
19-Oct-18,Culture & Environment Services,Wilco Motor Spares Ltd,9.99,General Transport Running Expenses,Ironised water
05-Oct-18,Culture & Environment Services,Wilko Retail Limit,14.17,Equipment - Purchase General,replacement light bulbs
31-Oct-18,Culture & Environment Services,Wilko Retail Limit,7.50,Equipment - Purchase General,Spray Paint - Xmas Parties
25-Oct-18,Culture & Environment Services,Wm Morrisons Store,1.58,Equipment - Purchase General,coffee and tea for hall hire
25-Oct-18,Culture & Environment Services,Woodshop Direct Woodstock,38.53,Equipment - Purchase General,marine plywood for FS door cover
17-Oct-18,Culture & Environment Services,Woodside Conferenc,113.42,Training Expenses,Hotel / Conference - Leading Learning
03-Oct-18,Culture & Environment Services,World Of Books,5.25,Equipment - Purchase General,Copy of HSG179
09-Oct-18,Culture & Environment Services,Www.Baga.Co.Uk,515.83,Training/Courses Running Costs,Trampolining Course Funding 
22-Oct-18,Culture & Environment Services,Www.Bunzlcleaningsuppl,112.78,Cleaning Supplies,Toilet rolls and j clothes
31-Oct-18,Culture & Environment Services,Www.Clickersarchery.Co,239.83,Equipment - Purchase General,Archery Target Maintenance
05-Oct-18,Culture & Environment Services,Www.Direct2u.Co.Uk,205.00,Cleaning Supplies,Bins for field.
26-Oct-18,Culture & Environment Services,Www.Firstfence.Co.Uk,833.33,Miscellaneous Stock  - Purchases,fencing for Jubilee Park
26-Oct-18,Culture & Environment Services,Www.Firstfence.Co.Uk,844.62,Miscellaneous Stock  - Purchases,fencing for Jubilee Park
08-Oct-18,Culture & Environment Services,Www.Jerseyplantsdirect,82.43,Equipment - Purchase General,hanging baskets and plants for outside of office
01-Oct-18,Culture & Environment Services,Www.Joeandsephs.Co.Uk,176.65,Goods for Resale - Catering/Beverages,Popcorn
18-Oct-18,Culture & Environment Services,Www.Lifesaversdirect,29.17,Goods for Resale - Retail,JPS Certificates
18-Oct-18,Culture & Environment Services,Www.Lifesaversdirect,273.33,Training/Courses Running Costs,NPLQ Candidate Packs
26-Oct-18,Culture & Environment Services,Www.Lifesaversdirect,54.67,Training/Courses Running Costs,First Aid At Work Candidate Packs
12-Oct-18,Culture & Environment Services,Www.Nisbets.Com,491.33,Equipment - Purchase General,Hot Dog Warmer
12-Oct-18,Culture & Environment Services,Www.Nisbets.Com,30.98,Premises Costs - Miscellaneous,rubber matting for underneath market gazebos
22-Oct-18,Culture & Environment Services,Www.Physioroom.Com,171.93,Equipment - Purchase General,weights
16-Oct-18,Culture & Environment Services,Www.Skylandequipment.C,98.40,Clothing & Uniform - Purchase,equipment for arb team
03-Oct-18,Culture & Environment Services,Www.The-Party-Place.Co,112.46,Materials and Supplies - Miscellaneous,Table clothes
02-Oct-18,Culture & Environment Services,Www.Trees.Org.Uk,23.29,Materials and Supplies - Miscellaneous,WWW. Trees - Book on Bats - Best Practice Aerial inspections
03-Oct-18,Culture & Environment Services,Www.Trees.Org.Uk,42.71,Materials and Supplies - Miscellaneous,www.trees Arb Assoc - Technician membership
24-Oct-18,Development,Amzn Mktp Uk,13.39,Clothing & Uniform - Purchase,New case for business mobile + delivery charge
23-Oct-18,Development,Babergh District C,100.00,Capital - Contracts,"Search Fee, as per Ref ND92688187 (online)"
31-Oct-18,Development,Babergh District C,160.00,Other Fees and Professional Services,Inspections Partnership Application 17/01112/PART
05-Oct-18,Development,Banner Group Ltd,5.20,Stationery,filing clips
09-Oct-18,Development,Construction Diaries,104.17,Training Expenses,Remaining balance of RICS APC Diary one fee 
11-Oct-18,Development,Fast Key Services Limi,10.91,Equipment - Purchase General,Replacement keys needed for cabinets
11-Oct-18,Development,Fast Key Services Limi,35.79,Equipment - Purchase General,spare keys for lockers @CSC
15-Oct-18,Development,Fast Key Services Limi,36.92,Equipment - Purchase General,Spare keys for CSC lockers
16-Oct-18,Development,Fast Key Services Limi,6.57,Equipment - Purchase General,Master key for CSC lockers
11-Oct-18,Development,Fast Key Services Limi,10.91,Fixtures & Fittings,Replacement keys needed for cabinets
22-Oct-18,Development,Fast Key Services Limi,8.54,Fixtures & Fittings,new keys for lockers
24-Oct-18,Development,Halfords 0883,62.67,General Transport Running Expenses,needing for Grafton pool cars
01-Oct-18,Development,J P Chick & Partne,95.00,Other Fees and Professional Services,Calculations check 17/0022/MUL
03-Oct-18,Development,Myparceldelivery Com,11.02,Capital - Contracts,Postage for Cornhill Plaque
04-Oct-18,Development,Parcel2go_uk,21.13,Postage Costs,Courier costs - return of LED sky panel
11-Oct-18,Development,Rcahms Enterprises,18.00,Stationery,Digital image download (Racecourse)
19-Oct-18,Development,Riba Services,76.00,Publications - Purchase,"JCT Consultancy Agreement 2016,"
05-Oct-18,Development,Rics Com Gbp Cybs,160.00,Training Expenses,SU proff update
12-Oct-18,Development,Stationery Office Book,198.75,Publications - Purchase,Complete set Building Regulations PF
15-Oct-18,Development,T/T Suffolk Coastal Dc,96.00,Other Fees and Professional Services,Partnership Application Inspections 
25-Oct-18,Development,T/T Suffolk Coastal Dc,96.00,Other Fees and Professional Services,Inspection Partnership Application 
25-Oct-18,Development,T/T Suffolk Coastal Dc,96.00,Other Fees and Professional Services,Inspections Partnership application 
24-Oct-18,Development,The Range,41.62,Equipment - Purchase General,needing new shower curtains
10-Oct-18,Development,Www.Ciob.Org.Uk,4.17,Training Expenses,CIOB Training
22-Oct-18,Development,Www.Homecraftsdirect.Co.,6.94,Stationery,Berol pens (red) pk12 for Planning
17-Oct-18,Development,Www.Latitudemaps.Co.Uk,16.50,Publications - Purchase,Latitude Map purchase for planning application
09-Oct-18,Development,Www.Midsuffolk.Gov.Uk,100.00,Other Fees and Professional Services,Partnership Inspection Fees 
09-Oct-18,Development,Www.Midsuffolk.Gov.Uk,100.00,Other Fees and Professional Services,Partnership Inspection Fees
03-Oct-18,Development,Www.Planningportal.Co.,250.67,Capital - Contracts,Planning fees- via Planning Portal 
03-Oct-18,Development,Www.Planningportal.Co.,16.67,Capital - Contracts,Planning fees- via Planning Portal 
31-Oct-18,Development,Www.Uk.Edensprings.Com,7.39,Materials and Supplies - Miscellaneous,"Paper cups purchase, replacing plastic"
19-Oct-18,Economic Development,Greater Anglia T/o,72.60,Exhibition expenses,travel to Mipim exhibition
19-Oct-18,Finance & Revenues,Amazon.Co.Uk,41.99,GF_Contract Repair & Maintenance,Display Adapter CSC
08-Oct-18,Finance & Revenues,Amazon.Co.Uk Amazon.Co.Uk,22.43,Telecommunication Costs - Business Phones,Telephone Cables
08-Oct-18,Finance & Revenues,Amzn Mktp Uk,479.60,Computer Equipment - Purchase,Notebook cases
22-Oct-18,Finance & Revenues,Amzn Mktp Uk,6.99,Computer Equipment - Purchase,Replacement Charger for Samsung S2
31-Oct-18,Finance & Revenues,Amzn Mktp Uk,45.00,Equipment - Purchase General,Windows 10 upgrade
02-Oct-18,Finance & Revenues,Amzn Mktp Uk,20.48,Stationery,Computer arm rest support 
03-Oct-18,Finance & Revenues,Amzn Mktp Uk,22.53,Stationery,IMAK Smart Glove (DSE) 
31-Oct-18,Finance & Revenues,Amzn Mktp Uk,28.47,Telecommunication Costs - Business Phones,Headset accessories
11-Oct-18,Finance & Revenues,Amzn Mktp Uk,3.07,Telecommunication Costs - Mobiles,Protective cases for Smartphones
11-Oct-18,Finance & Revenues,Amzn Mktp Uk,3.08,Telecommunication Costs - Mobiles,Protective cases for Smartphones
12-Oct-18,Finance & Revenues,Amzn Mktp Uk,3.07,Telecommunication Costs - Mobiles,Protective cases for Smartphones
12-Oct-18,Finance & Revenues,Amzn Mktp Uk,3.08,Telecommunication Costs - Mobiles,Protective cases for Smartphones
19-Oct-18,Finance & Revenues,Amzn Mktp Uk,16.48,Telecommunication Costs - Mobiles,Foam rings for Headsets
22-Oct-18,Finance & Revenues,Amzn Mktp Uk,3.08,Telecommunication Costs - Mobiles,Protective case for Smartphone
31-Oct-18,Finance & Revenues,Amzn Mktp Uk,18.45,Telecommunication Costs - Mobiles,Protective case for Smartphones
25-Oct-18,Finance & Revenues,Cbt Nuggets,67.22,Training Expenses,Training subscription
19-Oct-18,Finance & Revenues,Comms Express Ltd,83.10,Computer Equipment - Purchase,Stock cabling
19-Oct-18,Finance & Revenues,Crossbow Education,8.94,Computer Equipment - Purchase,Screen filter to resolve glare problems on screen
08-Oct-18,Finance & Revenues,Digicert Inc,78.39,Web Service costs,SSL/TLS Certificate renewal
31-Oct-18,Finance & Revenues,Ebuyer (Uk) Ltd,212.97,Computer Equipment - Purchase,Replacement Monitor CSC
31-Oct-18,Finance & Revenues,Ebuyer (Uk) Ltd,31.96,Computer Equipment - Purchase,Wireless KB & Mse for CSC
31-Oct-18,Finance & Revenues,Greater Anglia Trains,128.83,Training Expenses,Train tickets to attend seminar in London
18-Oct-18,Finance & Revenues,Hmcts-Suffolk024,800.00,Legal Services & Fees,Court Summons Fees
25-Oct-18,Finance & Revenues,Hmcts-Suffolk024,521.50,Legal Services & Fees,Summons court fees
19-Oct-18,Finance & Revenues,Kenable,28.71,Computer Equipment - Purchase,Agile USB Cables
02-Oct-18,Finance & Revenues,Lon Stck Exc/net,70.00,Financial Fees & Services,LEI Licence Fee
05-Oct-18,Finance & Revenues,Lucid Software Inc.,9.53,Computer Software - Purchase,PSN visio edit
05-Oct-18,Finance & Revenues,Ncs*cima Vue Exam,95.00,Training Expenses,Exam fees 
08-Oct-18,Finance & Revenues,Paypal,29.99,Web Service costs,Domain renewal
11-Oct-18,Finance & Revenues,Pdf.U-Bill.Com,33.25,Computer Software - Purchase,PDF editor
25-Oct-18,Finance & Revenues,Probrandlimited,160.34,Computer Software - Purchase,4 Licences x Nuance PDF. SRP Agile
24-Oct-18,Finance & Revenues,"Securitymetrics, Inc.",420.00,Other Fees and Professional Services,PCI compliance
10-Oct-18,Finance & Revenues,Service Fees - Fraedom Pty Ltd,383.15,Computer Software - Maintenance,Fraedom Card Usage Fee - 1/9/18 to 30/9/18
30-Oct-18,Finance & Revenues,Smartsheet,74.18,Computer Consumables and other Minor IT costs,Smartsheet subscription
30-Oct-18,Finance & Revenues,Smartsheet,74.10,Computer Equipment - Purchase,Smartsheet subscription
30-Oct-18,Finance & Revenues,Smartsheet,74.10,Computer Equipment - Purchase,Smartsheet subscription
30-Oct-18,Finance & Revenues,Smartsheet,74.10,Computer Equipment - Purchase,Smartsheet subscription
30-Oct-18,Finance & Revenues,Smartsheet,222.30,Computer Equipment - Purchase,Smartsheet subscription
30-Oct-18,Finance & Revenues,Smartsheet,74.10,Computer Equipment - Purchase,Smartsheet subscription
30-Oct-18,Finance & Revenues,Smartsheet,148.20,Computer Equipment - Purchase,Smartsheet subscription
30-Oct-18,Finance & Revenues,Smartsheet,74.10,Computer Equipment - Purchase,Smartsheet subscription
30-Oct-18,Finance & Revenues,Smartsheet,74.10,Computer Equipment - Purchase,Smartsheet subscription
30-Oct-18,Finance & Revenues,Smartsheet,74.10,Computer Software - Maintenance,Smartsheet subscription
30-Oct-18,Finance & Revenues,Smartsheet,74.10,Computer Software - Purchase,Smartsheet subscription
30-Oct-18,Finance & Revenues,Smartsheet,74.10,Other Fees and Professional Services,Smartsheet subscription
08-Oct-18,Finance & Revenues,Trainline,44.07,Employee Expenses,Return train tickets for course in London
09-Oct-18,Finance & Revenues,Trainline,42.21,Use Of Public Transport,Return Ticket Ipswich to London 15/10/18 
31-Oct-18,Finance & Revenues,Www.Aat-Org.Uk,94.00,Employee Expenses,AAT Annual Membership 
31-Oct-18,Finance & Revenues,Www.Aat-Org.Uk,151.00,Employee Expenses,MAAT Membership Fee 
09-Oct-18,Finance & Revenues,Www.Ballicom.Co.Uk,148.48,Computer Equipment - Purchase,Laptop locks for the CSC
24-Oct-18,Finance & Revenues,Www.Cimaglobal.Com,115.00,Employee Expenses,CIMA Annual Membership Subscription 
15-Oct-18,Housing & Community Services,Amazon Prime,7.99,Equipment - Purchase General,Amazon Prime
05-Oct-18,Housing & Community Services,Amazon.Co.Uk,38.33,Equipment - Purchase General,2x Hozelock Water sprayers for Painters 
19-Oct-18,Housing & Community Services,Amazon.Co.Uk,18.98,Equipment - Purchase General,Laptop case
19-Oct-18,Housing & Community Services,Amazon.Co.Uk,18.98,Equipment - Purchase General,Laptop case
19-Oct-18,Housing & Community Services,Amazon.Co.Uk,18.98,Equipment - Purchase General,Laptop case
29-Oct-18,Housing & Community Services,Amazon.Co.Uk,24.99,Stationery,refund for wire less keyboard
10-Oct-18,Housing & Community Services,Amazon.Co.Uk Amazon.Co.Uk,14.98,Computer Equipment - Purchase,Wireless Mouse
02-Oct-18,Housing & Community Services,Amzn Mktp Uk,4.50,Cleaning Supplies,Washing Up Brushes
10-Oct-18,Housing & Community Services,Amzn Mktp Uk,19.98,Equipment - Purchase General,3x Hole cutter sets
12-Oct-18,Housing & Community Services,Amzn Mktp Uk,8.59,Equipment - Purchase General,Mobile phone cases
12-Oct-18,Housing & Community Services,Amzn Mktp Uk,8.59,Equipment - Purchase General,Mobile phone cases
12-Oct-18,Housing & Community Services,Amzn Mktp Uk,17.18,Equipment - Purchase General,Mobile phone cases
12-Oct-18,Housing & Community Services,Amzn Mktp Uk,17.18,Equipment - Purchase General,Mobile phone cases
12-Oct-18,Housing & Community Services,Amzn Mktp Uk,7.50,Equipment - Purchase General,Mobile phone screen protectors
12-Oct-18,Housing & Community Services,Amzn Mktp Uk,11.80,Equipment - Purchase General,Notice stamp for EP
15-Oct-18,Housing & Community Services,Amzn Mktp Uk,6.99,Equipment - Purchase General,Mobile Phone Screen Protector
18-Oct-18,Housing & Community Services,Amzn Mktp Uk,77.70,Equipment - Purchase General,Tablet case/screen protectors
29-Oct-18,Housing & Community Services,Amzn Mktp Uk,10.65,Equipment - Purchase General,Screen protectors
29-Oct-18,Housing & Community Services,Amzn Mktp Uk,5.32,Equipment - Purchase General,Screen protectors
01-Oct-18,Housing & Community Services,Amzn Mktp UK Amazon.Co.Uk,19.98,Materials and Supplies - Miscellaneous,3222629 Handle Bolts x 40
02-Oct-18,Housing & Community Services,Argos Retail Group,30.00,Cleaning Supplies,Bins for CSC
19-Oct-18,Housing & Community Services,Argos Warren Heath,58.95,Other Minor Expenses,crockery/shower curtain/lamp for guestroom
16-Oct-18,Housing & Community Services,B & M Retail,4.00,Stationery,10 litre tubs
18-Oct-18,Housing & Community Services,B & M Retail,4.00,Stationery,10 litre boxes
23-Oct-18,Housing & Community Services,B & M Retail,8.33,Stationery,10 litre storage & 30 litre
01-Oct-18,Housing & Community Services,Banner Group Ltd,41.13,Stationery,"lables, A4 clear document holders x 2"
02-Oct-18,Housing & Community Services,Banner Group Ltd,80.52,Stationery,Stationery
08-Oct-18,Housing & Community Services,Banner Group Ltd,89.13,Stationery,"dymo tape, clear A4 holder x 3 and 1 x linked wall file"
09-Oct-18,Housing & Community Services,Banner Group Ltd,28.73,Stationery,"labels, roll dispenser"
17-Oct-18,Housing & Community Services,Banner Group Ltd,25.57,Stationery,Stationery
30-Oct-18,Housing & Community Services,Banner Group Ltd,40.75,Stationery,"A4 Laminate, Batteries and white boards"
30-Oct-18,Housing & Community Services,Banner Group Ltd,68.86,Stationery,"A4 laminate, Batteries and White boards"
17-Oct-18,Housing & Community Services,Complete Care Shop,59.95,Materials and Supplies - Miscellaneous,threshold Bridging Ramp 3227400
01-Oct-18,Housing & Community Services,Cpw Locksmiths And Securi,185.00,HRA Special Repairs & Maintenance,AHC 1 stubbs close adjust repair worn cylinder
19-Oct-18,Housing & Community Services,Cpw Locksmiths And Securi,80.00,HRA Special Repairs & Maintenance,Lock repair
22-Oct-18,Housing & Community Services,Cpw Locksmiths And Securi,172.00,HRA Special Repairs & Maintenance,provide lock to scheme
24-Oct-18,Housing & Community Services,Cpw Locksmiths And Securi,110.00,HRA Special Repairs & Maintenance,Holywells Court flat 8 back onto master key system
03-Oct-18,Housing & Community Services,Door-Stop Internationa,79.00,Materials and Supplies - Miscellaneous,6x hinge 32054686x hinge 3216525
17-Oct-18,Housing & Community Services,Eoe Co-Op,20.00,Materials and Supplies - Miscellaneous,Electric
30-Oct-18,Housing & Community Services,Eoe Co-Op,20.00,Materials and Supplies - Miscellaneous,electric 
12-Oct-18,Housing & Community Services,Greater Anglia T/o,10.00,Training Expenses,Change to train time 
19-Oct-18,Housing & Community Services,Halfords 0883,7.50,Equipment - Purchase General,Garmin cable-HEARS vehicle
10-Oct-18,Housing & Community Services,J2 Efax Plus Service,11.00,Other Minor Expenses,Monthly fee for use of secure fax system
19-Oct-18,Housing & Community Services,Liquidline,104.47,Materials and Supplies - Miscellaneous,sugar sticks and coffee
12-Oct-18,Housing & Community Services,Lumberjacks,25.00,Materials and Supplies - Miscellaneous,3260375 Wooden Gate
15-Oct-18,Housing & Community Services,Machine Mart Ltd,11.98,Equipment - Purchase General,2 x Pairs of side-cutters for issue to IP163 & IP167
15-Oct-18,Housing & Community Services,Machine Mart Ltd,159.97,Equipment - Purchase General,"Leaf blower, charger & battery - Crown car park."
10-Oct-18,Housing & Community Services,Millets,86.07,Clothing & Uniform - Purchase,Boots & gloves IP167 new issue. Boots IP159 replacements
12-Oct-18,Housing & Community Services,Millets,172.83,Clothing & Uniform - Purchase,"Replacement boots for: IP149, IP150, IP160 & IP163"
29-Oct-18,Housing & Community Services,Mpd - Ipswich 03,157.11,Equipment - Purchase General,3 x PAGM 20-12 Batteries for use in P & D machines.
30-Oct-18,Housing & Community Services,Paperchase,6.30,Stationery,fabric pen
02-Oct-18,Housing & Community Services,Possessionclaim.Go,325.00,Legal Services & Fees,possession claim on line
03-Oct-18,Housing & Community Services,Possessionclaim.Go,325.00,Legal Services & Fees,possession claim on line
03-Oct-18,Housing & Community Services,Possessionclaim.Go,325.00,Legal Services & Fees,possession claim on line
03-Oct-18,Housing & Community Services,Possessionclaim.Go,325.00,Legal Services & Fees,possession claim on line
03-Oct-18,Housing & Community Services,Possessionclaim.Go,325.00,Legal Services & Fees,possession claim on line
05-Oct-18,Housing & Community Services,Possessionclaim.Go,121.00,Legal Services & Fees,warrant costs for possession
05-Oct-18,Housing & Community Services,Possessionclaim.Go,121.00,Legal Services & Fees,warrant costs on line
11-Oct-18,Housing & Community Services,Possessionclaim.Go,325.00,Legal Services & Fees,Court fee
11-Oct-18,Housing & Community Services,Possessionclaim.Go,325.00,Legal Services & Fees,Court fee
11-Oct-18,Housing & Community Services,Possessionclaim.Go,325.00,Legal Services & Fees,possession claim on line court
11-Oct-18,Housing & Community Services,Possessionclaim.Go,325.00,Legal Services & Fees,possession claim on line for court
11-Oct-18,Housing & Community Services,Possessionclaim.Go,325.00,Legal Services & Fees,Possession claim on line for court
11-Oct-18,Housing & Community Services,Possessionclaim.Go,325.00,Legal Services & Fees,possession claim on line for court
11-Oct-18,Housing & Community Services,Possessionclaim.Go,325.00,Legal Services & Fees,possession claim on line for court
11-Oct-18,Housing & Community Services,Possessionclaim.Go,325.00,Legal Services & Fees,possession claim on line for court
11-Oct-18,Housing & Community Services,Possessionclaim.Go,325.00,Legal Services & Fees,possession claim on line for court action
23-Oct-18,Housing & Community Services,Possessionclaim.Go,325.00,Legal Services & Fees,possession claim on line
24-Oct-18,Housing & Community Services,Possessionclaim.Go,325.00,Legal Services & Fees,possession claim application for court
11-Oct-18,Housing & Community Services,Power Tools Uk,67.52,Equipment - Purchase General,3 x 18v battery chargers for power tools in hireshop
19-Oct-18,Housing & Community Services,Premier Inn44015485,113.33,Training Expenses,attending NUG meeting - 50% to be refunded by UG
11-Oct-18,Housing & Community Services,Sainsburys Petrol,21.23,Equipment - Purchase General,Fuel Unleaded for Power Tools
15-Oct-18,Housing & Community Services,Sainsburys S/mkt,95.83,Other Minor Expenses,replacement kettle and microwave
04-Oct-18,Housing & Community Services,Sainsburys S/mkts,1.50,Housing  - other Costs,EAST Area Housing Panel Refreshments
17-Oct-18,Housing & Community Services,Sainsburys S/mkts,15.66,Housing  - other Costs,Get Together
01-Oct-18,Housing & Community Services,Scaffoldingsales,33.17,Equipment - Purchase General,Scaffold Netting for recycling area to stop debris
05-Oct-18,Housing & Community Services,Screwfix Direct,33.32,HRA Special Repairs & Maintenance,2 post box Reydon/Walton
09-Oct-18,Housing & Community Services,Seton,320.00,Equipment - Purchase General,New COSHH Cabinet for the wood mill 
31-Oct-18,Housing & Community Services,Seton,21.83,Equipment - Purchase General,Chemical storage signage 
31-Oct-18,Housing & Community Services,Seton,83.99,Equipment - Purchase General,"Hearing protection dispenser, marker pens sign woodmill"
31-Oct-18,Housing & Community Services,Seton,47.28,Equipment - Purchase General,Pat testing labels 
10-Oct-18,Housing & Community Services,Shuropody Ltd,37.50,Clothing & Uniform - Purchase,Consultation and remedial insoles for IP159
31-Oct-18,Housing & Community Services,Suk Retail Ltd,8.64,Equipment - Purchase General,Parcel tape and bubble-wrap to return old handhelds.
12-Oct-18,Housing & Community Services,Suk Retail Ltd,1.66,Stationery,White Tack
05-Oct-18,Housing & Community Services,The Range,43.32,Materials and Supplies - Miscellaneous,Plant pots for new CSC
15-Oct-18,Housing & Community Services,Timpson,4.00,Stationery,key fobs
15-Oct-18,Housing & Community Services,Timpson Ltd,22.55,Stationery,Key Fobs
02-Oct-18,Housing & Community Services,Toolstation Ltd,15.88,Materials and Supplies - Miscellaneous,Materials 
18-Oct-18,Housing & Community Services,Trainline,111.36,Training Expenses,attending NUG meeting - 50% to be refunded by UG
22-Oct-18,Housing & Community Services,Trainline,86.70,Training Expenses,Train tickets Ipswich to London return for 30/10/18
23-Oct-18,Housing & Community Services,Trainline,46.07,Training Expenses,attending CIH training (travel) - Cambridge
31-Oct-18,Housing & Community Services,Trainline,146.96,Training Expenses,Train to London for training
29-Oct-18,Housing & Community Services,Viking,284.29,Stationery,2019 Diaries
04-Oct-18,Housing & Community Services,Wilko Retail Limit,26.05,Cleaning Supplies,Cleaning Supplies -
02-Oct-18,Housing & Community Services,Wilko Retail Limit,6.50,Stationery,Command Strips -
25-Oct-18,Housing & Community Services,Wilko Retail Limit,6.25,Stationery,can opener and command picture hangi
26-Oct-18,Housing & Community Services,Wilko Retail Limit,6.00,Stationery,Laminating sheets
26-Oct-18,Housing & Community Services,Wilko Retail Limit,1.46,Stationery,pen for csc
04-Oct-18,Housing & Community Services,Www Projectorshop24 Co Uk,87.48,Computer Equipment - Purchase,Projector for CSC
19-Oct-18,Housing & Community Services,Www.Corgi-Direct.Com,93.60,Stationery,CP12 pads
15-Oct-18,Housing & Community Services,Www.Cultpen.Com,6.48,Stationery,Magnetic Pen Holders
31-Oct-18,Housing & Community Services,Www.Northantstools.Co.,17.47,Equipment - Purchase General,Tile cutter guard
09-Oct-18,Housing & Community Services,Www.Toolstation.Com,15.38,Equipment - Purchase General,Pipe Cutters X2 Graffiti Team 
11-Oct-18,Housing & Community Services,Www.Toolstation.Com,13.48,Equipment - Purchase General,Cutting Shear set x 3 Caretakers 
22-Oct-18,Housing & Community Services,Www.Westminster-Briefi,245.00,Training Expenses,Training course Tackling Waste Crime Briefing on 30th Oct
12-Oct-18,People & Governance,Aa Eurotunnel,5.83,Miscellaneous Functions & Events,breath testing kit. arras trip
12-Oct-18,People & Governance,Amzn Mktp Uk,6.91,Miscellaneous Stock  - Purchases,Required double sided sticky tape for pull up banners
26-Oct-18,People & Governance,Amzn Mktp Uk,48.00,Miscellaneous Stock  - Purchases,3 x Pull up banner casings - Print Room
26-Oct-18,People & Governance,Amzn Mktp Uk,10.67,Miscellaneous Stock  - Purchases,Double Sided tape for pull up banners - Print Room
09-Oct-18,People & Governance,Dart Charge,6.50,Mayoral Related Expenditure,"Mayor's car journey to Arras France,"
03-Oct-18,People & Governance,Debenhams,192.00,Project Costs,Retirement gift card 
16-Oct-18,People & Governance,Eoe Co-Op,1.95,Project Costs,tea & biscuits for Racecourse Reference Group meeting
15-Oct-18,People & Governance,Esso Mrh Maidstone Mwsa,38.23,General Transport Running Expenses,fuel
15-Oct-18,People & Governance,Eurotunnel Presale,32.50,Miscellaneous Functions & Events,"euro tunnel, Arras trips"
08-Oct-18,People & Governance,Facebk *n6d4uhs8j2,9.07,Advertising/Publicity,Advertising
08-Oct-18,People & Governance,Facebk *n6d4uhs8j2,10.00,Advertising/Publicity,Advertising
08-Oct-18,People & Governance,Facebk *n6d4uhs8j2,342.60,Advertising/Publicity,Advertising
16-Oct-18,People & Governance,Facebk *vfk6uhw7j2,542.97,Advertising/Publicity,Advertising
16-Oct-18,People & Governance,Facebk *vfk6uhw7j2,8.96,Advertising/Publicity,Advertising
16-Oct-18,People & Governance,Facebk *vfk6uhw7j2,28.07,Advertising/Publicity,Advertising
29-Oct-18,People & Governance,Facebk *yctyyhs7j2,50.00,Advertising/Publicity,Advertising
29-Oct-18,People & Governance,Facebk *yctyyhs7j2,46.70,Advertising/Publicity,Advertising
29-Oct-18,People & Governance,Facebk *yctyyhs7j2,10.71,Advertising/Publicity,Advertising
29-Oct-18,People & Governance,Facebk *yctyyhs7j2,375.92,Advertising/Publicity,Advertising
01-Oct-18,People & Governance,Facebk Ccjqlhj8j2,38.28,Advertising/Publicity,Advertising
01-Oct-18,People & Governance,Facebk Ccjqlhj8j2,541.72,Advertising/Publicity,Advertising
15-Oct-18,People & Governance,Grand Place Aut12324069,10.87,Miscellaneous Functions & Events,parking fee arras
30-Oct-18,People & Governance,Greater Anglia Trains,28.00,Use Of Public Transport,Travel to TA6 Sports marketing conference
16-Oct-18,People & Governance,Hmrc Gov.Uk Sdlt,101.92,Legal Services & Fees,Stamp Duty Land Tax
15-Oct-18,People & Governance,Hmshost,4.48,Miscellaneous Functions & Events,sandwiches arras trip
01-Oct-18,People & Governance,Johnsons,50.00,Miscellaneous Functions & Events,dry cleaning (Suits)
15-Oct-18,People & Governance,Mailchimp,377.63,Subscriptions - Service Related,MailChimp
29-Oct-18,People & Governance,Mailchimp,216.51,Subscriptions - Service Related,MailChimp
04-Oct-18,People & Governance,Marks&spencer Plc,29.09,Miscellaneous Functions & Events,Special olympics athletes reception . cake
26-Oct-18,People & Governance,Marks&spencer Plc,12.50,Miscellaneous Functions & Events,"Florence Lucas on her 100th , pot plant"
29-Oct-18,People & Governance,Marks&spencer Plc,43.80,Miscellaneous Functions & Events,"Carol Read and guests , cake and sandwiches"
18-Oct-18,People & Governance,Marks&spencer Plc,263.00,Project Costs,Retirement gift card 
03-Oct-18,People & Governance,Nochex.*utilitysearch,601.02,Legal Services & Fees,Utility Search
10-Oct-18,People & Governance,Parcel2go_uk,13.25,Advertising/Publicity,Flyers to Archant for flyer drop - The Elvis Years
11-Oct-18,People & Governance,Procters Sausages,62.74,Miscellaneous Functions & Events,hamper and gifts for Arras
11-Oct-18,People & Governance,Sainsburys Petrol,11.48,General Transport Running Expenses,fuel
11-Oct-18,People & Governance,Sainsburys S/mkt,4.90,Miscellaneous Functions & Events,water and snacks for Arras trip
15-Oct-18,People & Governance,Sanef Autoroute,7.25,Miscellaneous Functions & Events,coffees in Arras trip
17-Oct-18,People & Governance,Sanef Autoroute,7.26,Miscellaneous Functions & Events,tolls for Arras trip
08-Oct-18,People & Governance,Shell Ranelagh 390,28.54,General Transport Running Expenses,fuel
01-Oct-18,People & Governance,Spectrum Computers Ltd,39.00,Computer Consumables and other Minor IT costs,"Inks for Regent, Cllr "
01-Oct-18,People & Governance,Spectrum Computers Ltd,26.41,Computer Consumables and other Minor IT costs,"Inks for Regent, Cllr "
09-Oct-18,People & Governance,Spectrum Computers Ltd,24.00,Computer Consumables and other Minor IT costs,Regent
10-Oct-18,People & Governance,Spectrum Computers Ltd,9.40,Computer Consumables and other Minor IT costs,"inks,- Regent, Cllr"
10-Oct-18,People & Governance,Spectrum Computers Ltd,29.90,Computer Consumables and other Minor IT costs,"inks,- Regent, Cllr "
15-Oct-18,People & Governance,Spectrum Computers Ltd,195.42,Computer Consumables and other Minor IT costs,HP yellow toner for Hackney carriages
15-Oct-18,People & Governance,Spectrum Computers Ltd,32.45,Computer Consumables and other Minor IT costs,"Inks, Regent, Perf. /Projects, Cllr "
15-Oct-18,People & Governance,Spectrum Computers Ltd,35.07,Computer Consumables and other Minor IT costs,"Inks,- Regent, Perf. /Projects, Cllr "
15-Oct-18,People & Governance,Spectrum Computers Ltd,18.84,Computer Consumables and other Minor IT costs,"Inks,- Regent, Perf. /Projects, Cllr "
22-Oct-18,People & Governance,Spectrum Computers Ltd,246.84,Computer Consumables and other Minor IT costs,"Inks for S/Housing , Cllr Services"
22-Oct-18,People & Governance,Spectrum Computers Ltd,11.00,Computer Consumables and other Minor IT costs,"Inks for S/Housing , Cllr Services"
24-Oct-18,People & Governance,Spectrum Computers Ltd,194.44,Computer Consumables and other Minor IT costs,Ink Cartridges 
24-Oct-18,People & Governance,Spectrum Computers Ltd,119.60,Computer Consumables and other Minor IT costs,Ink Cartridges 
25-Oct-18,People & Governance,Spectrum Computers Ltd,180.04,Computer Consumables and other Minor IT costs,Ink Cartridges 
17-Oct-18,People & Governance,"Sprout Social, Inc",705.34,Subscriptions - Service Related,Social media management
22-Oct-18,People & Governance,"Sprout Social, Inc",72.18,Subscriptions - Service Related,Social media management
24-Oct-18,People & Governance,Trainline,18.51,Use Of Public Transport,Return trip Ipswich to Norwich Look Sideways East Marketing
01-Oct-18,People & Governance,Waitrose Ltd,3.78,Miscellaneous Functions & Events,"Care Leavers in the Grandmentors project, fruit"
04-Oct-18,People & Governance,Waitrose Ltd,8.57,Miscellaneous Functions & Events,dishwasher tables
10-Oct-18,People & Governance,Waitrose Ltd,2.54,Miscellaneous Functions & Events,Health Outreach Marginalised Adults Group milk/biscuits
24-Oct-18,People & Governance,Waitrose Ltd,2.80,Miscellaneous Functions & Events,"WASSUP Youth Social Action Group, milk biscuits"
29-Oct-18,People & Governance,Waitrose Ltd,5.41,Miscellaneous Functions & Events,biscuits poppy launch
29-Oct-18,People & Governance,Waitrose Ltd,6.55,Miscellaneous Functions & Events,coffee for parlour
08-Oct-18,People & Governance,Www.Istock.Com,42.00,Advertising/Publicity,Stock images
22-Oct-18,People & Governance,Www.Istock.Com,42.00,Advertising/Publicity,Stock Image
03-Oct-18,People & Governance,Www.Iwaste.Co.Uk,256.25,Equipment - Purchase General,Collection of Old Equipment from the Print Room
03-Oct-18,People & Governance,Www.Ovendenpapers.,16.20,Miscellaneous Stock  - Purchases,Required Large Format Paper for the Print Room
30-Oct-18,People & Governance,Www.Ovendenpapers.,168.15,Miscellaneous Stock  - Purchases,Required Large Format paper for the print room
01-Oct-18,People & Governance,Www.Paper.Co.Uk,200.53,Miscellaneous Stock  - Purchases,Paper for printing
03-Oct-18,People & Governance,Www.Paper.Co.Uk,232.46,Miscellaneous Stock  - Purchases,Required Paper Supply for the Print Room
22-Oct-18,People & Governance,Www.Paper.Co.Uk,316.09,Miscellaneous Stock  - Purchases,Required Paper Supply - Print Room
16-Oct-18,People & Governance,Www.Voucherexpress.Co.,268.75,Project Costs,Retirement gift 
